bitfinex/quotes_SOLUSD_20241107
["timestamp","ask_amount","ask_price","bid_price","bid_amount"]
[1731013543633,15.35903518,197.44,197.26,23.902374]
[1731013543845,15.35903518,197.44,197.28,23.902374]
[1731013544038,15.35903518,197.44,197.3,23.902374]
[1731013544227,15.35903518,197.44,197.33,20.0]
[1731013544428,15.35903518,197.45,197.34,23.902374]
[1731013544638,15.35903518,197.46,197.35,20.0]
[1731013544837,15.35903518,197.45,197.35,20.0]
[1731013545343,15.35903518,197.44,197.35,20.0]
[1731013545737,15.35903518,197.45,197.35,20.0]
[1731013546137,0.12549,197.44,197.34,23.776884]
[1731013546452,15.35903518,197.41,197.26,20.0]
[1731013546656,15.35903518,197.42,197.27,0.12549]
[1731013547764,15.35903518,197.42,197.29,0.12549]
[1731013548055,15.35903518,197.42,197.31,0.12549]
[1731013548241,15.35903518,197.42,197.32,20.0]
[1731013548448,15.35903518,197.44,197.33,0.12549]
[1731013548837,15.35903518,197.43,197.33,0.12549]
[1731013549032,15.35903518,197.44,197.33,0.12549]
[1731013549233,15.35903518,197.42,197.33,0.12549]
[1731013549433,15.35903518,197.41,197.32,20.0]
[1731013549652,15.35903518,197.42,197.32,20.0]
[1731013550051,15.35903518,197.44,197.33,0.12549]
[1731013550355,15.35903518,197.44,197.34,20.0]
[1731013550759,15.35903518,197.43,197.34,20.0]
[1731013551059,15.35903518,197.43,197.32,20.12549]
[1731013551361,15.35903518,197.42,197.32,20.0]
[1731013551539,15.35903518,197.42,197.29,23.776884]
[1731013551742,15.35903518,197.43,197.32,20.12549]
[1731013553872,29.88817622,197.47,197.32,20.12549]
[1731013554157,29.88817622,197.47,197.25,16.0035]
[1731013554158,15.35903518,197.44,197.34,20.12549]
[1731013554362,15.35903518,197.43,197.34,20.0]
[1731013554559,15.35903518,197.43,197.27,24.002374]
[1731013554743,15.35903518,197.43,197.31,0.12549]
[1731013555056,15.35903518,197.43,197.34,20.0]
[1731013555251,15.35903518,197.44,197.34,20.0]
[1731013555457,15.35903518,197.44,197.33,23.902374]
[1731013555647,15.35903518,197.44,197.34,20.0]
[1731013556166,15.35903518,197.44,197.32,20.12549]
[1731013556347,15.35903518,197.44,197.34,20.12549]
[1731013556744,15.35903518,197.45,197.32,20.12549]
[1731013557064,15.35903518,197.45,197.34,20.12549]
[1731013558743,15.35903518,197.44,197.34,20.12549]
[1731013559460,15.35903518,197.44,197.36,20.12549]
[1731013559669,15.35903518,197.45,197.36,20.12549]
[1731013560048,15.35903518,197.42,197.28,20.0]
[1731013560273,15.35903518,197.42,197.31,23.776884]
[1731013560581,15.35903518,197.42,197.34,20.12549]
[1731013560965,15.35903518,197.41,197.34,20.12549]
[1731013561166,15.35903518,197.42,197.28,20.0]
[1731013561477,15.35903518,197.41,197.33,0.12549]
[1731013562073,15.35903518,197.42,197.33,0.12549]
[1731013562288,15.35903518,197.39,197.26,23.776884]
[1731013562702,15.35903518,197.39,197.27,0.12549]
[1731013564101,15.35903518,197.39,197.27,20.12549]
[1731013564279,15.35903518,197.39,197.29,20.12549]
[1731013564474,5.27733194,197.44,197.29,20.12549]
[1731013564475,15.35903518,197.4,197.29,20.12549]
[1731013565095,15.35903518,197.39,197.29,20.12549]
[1731013567895,5.27733194,197.44,197.27,23.776884]
[1731013567896,15.35903518,197.38,197.27,23.776884]
[1731013568090,15.35903518,197.37,197.29,0.12549]
[1731013568306,15.35903518,197.39,197.29,0.12549]
[1731013568605,15.35903518,197.39,197.31,0.12549]
[1731013569211,15.35903518,197.39,197.3,20.0]
[1731013569506,9.84081774,197.39,197.31,0.12549]
[1731013571403,9.84081774,197.38,197.31,0.12549]
[1731013571710,5.27733194,197.44,197.31,0.12549]
[1731013571912,21.8381,197.31,197.19,2.0950398]
[1731013572216,9.84081774,197.26,197.16,16.2553]
[1731013572386,9.84081774,197.26,197.17,0.12549]
[1731013572590,9.84081774,197.26,197.16,18.28364763]
[1731013572787,9.84081774,197.25,197.16,18.28364763]
[1731013573501,9.84081774,197.25,197.17,20.0]
[1731013573906,9.84081774,197.26,197.17,20.0]
[1731013574086,21.8381,197.31,197.18,0.12549]
[1731013574284,9.84081774,197.3,197.18,0.12549]
[1731013574491,21.8381,197.31,197.2,0.12549]
[1731013574707,9.84081774,197.29,197.19,19.62549]
[1731013575207,19.64235469,197.28,197.19,19.62549]
[1731013575402,3.7698219,197.27,197.19,19.62549]
[1731013575573,3.7698219,197.26,197.19,19.62549]
[1731013575777,15.39094837,197.28,197.19,19.62549]
[1731013576008,15.39094837,197.24,197.16,18.28364763]
[1731013576309,15.39094837,197.24,197.16,2.02834763]
[1731013576509,15.39094837,197.25,197.11,15.5107]
[1731013576710,3.76726992,197.24,197.12,20.0]
[1731013576885,15.39094837,197.25,197.13,0.12549]
[1731013577286,15.39094837,197.25,197.12,20.0]
[1731013577478,15.39094837,197.26,197.14,20.0]
[1731013577676,15.39094837,197.27,197.16,20.12549]
[1731013577979,3.76667524,197.26,197.16,20.12549]
[1731013578302,15.39094837,197.27,197.16,20.12549]
[1731013578489,3.76552631,197.26,197.16,20.12549]
[1731013578683,15.39094837,197.27,197.16,20.12549]
[1731013578879,3.765526,197.26,197.16,20.12549]
[1731013579069,11.15647437,197.27,197.16,20.12549]
[1731013579570,15.39094837,197.28,197.18,20.12549]
[1731013580077,15.39094837,197.29,197.18,20.12549]
[1731013580566,15.39094837,197.29,197.17,23.776884]
[1731013580567,15.39094837,197.29,197.2,20.12549]
[1731013580758,0.1,197.28,197.1,20.0]
[1731013580955,0.1,197.28,197.1,43.776884]
[1731013581154,0.1,197.28,197.11,4.25652092]
[1731013581372,0.2,197.25,197.11,4.25652092]
[1731013581554,0.2,197.25,197.1,24.25652092]
[1731013582176,23.876884,197.28,197.1,24.25652092]
[1731013582368,0.1,197.28,197.1,24.25652092]
[1731013582572,0.1,197.28,197.1,20.0]
[1731013582770,0.1,197.28,197.11,23.776884]
[1731013583072,0.1,197.28,197.14,20.12549]
[1731013583284,0.1,197.28,197.14,24.37749288]
[1731013583860,0.1,197.28,197.16,20.12549]
[1731013584101,0.1,197.27,197.16,20.12549]
[1731013584286,0.1,197.28,197.16,20.12549]
[1731013588065,0.1,197.28,197.16,22.22024726]
[1731013588364,21.8381,197.31,197.16,22.22024726]
[1731013588365,23.876884,197.3,197.16,26.47207925]
[1731013588565,15.3435,197.31,197.16,26.47207925]
[1731013588763,15.4435,197.31,197.18,20.12549]
[1731013589084,15.3435,197.31,197.18,24.37732199]
[1731013589271,0.1,197.34,197.17,0.12549]
[1731013589481,21.9996,197.36,197.23,20.12549]
[1731013589682,0.1,197.38,197.23,20.12549]
[1731013589870,0.1,197.37,197.23,20.12549]
[1731013590184,0.1,197.38,197.23,20.12549]
[1731013590360,0.1,197.36,197.25,20.12549]
[1731013590563,0.1,197.38,197.25,20.12549]
[1731013590763,0.1,197.36,197.25,20.12549]
[1731013590973,0.1,197.36,197.27,0.12549]
[1731013591382,0.1,197.36,197.25,0.12549]
[1731013591691,0.1,197.38,197.25,0.12549]
[1731013591861,0.1,197.38,197.25,4.37496161]
[1731013592065,0.1,197.38,197.25,0.12549]
[1731013592262,0.1,197.38,197.25,4.37496161]
[1731013592481,0.1,197.38,197.25,20.0]
[1731013592685,0.1,197.38,197.26,0.12549]
[1731013593684,0.1,197.38,197.28,20.12549]
[1731013594960,15.6263,197.41,197.28,20.12549]
[1731013595165,15.7263,197.41,197.28,20.12549]
[1731013596262,15.8263,197.41,197.28,20.12549]
[1731013596462,15.6263,197.41,197.28,20.12549]
[1731013596681,15.7263,197.41,197.28,20.12549]
[1731013596874,15.6263,197.41,197.28,20.12549]
[1731013597191,15.7263,197.41,197.28,20.12549]
[1731013597677,15.8491,197.45,197.3,20.12549]
[1731013597880,6.5275,197.47,197.34,0.12549]
[1731013598070,0.1,197.47,197.34,20.12549]
[1731013598963,0.1,197.48,197.34,20.12549]
[1731013599161,0.1,197.47,197.34,20.12549]
[1731013599689,0.1,197.49,197.34,20.12549]
[1731013600672,0.1,197.46,197.34,20.12549]
[1731013601372,0.1,197.47,197.34,20.12549]
[1731013602667,15.8491,197.5,197.36,20.12549]
[1731013604294,15.8491,197.5,197.38,20.12549]
[1731013604673,6.5275,197.52,197.38,20.12549]
[1731013605173,0.1,197.51,197.38,20.12549]
[1731013605377,6.6275,197.52,197.38,20.12549]
[1731013605905,6.5275,197.52,197.38,20.12549]
[1731013606187,6.5275,197.52,197.37,6.6503]
[1731013606188,0.1,197.54,197.4,20.12549]
[1731013606492,16.5012,197.55,197.4,20.12549]
[1731013606676,0.2,197.54,197.4,20.12549]
[1731013606872,0.1,197.54,197.4,20.12549]
[1731013607076,0.2,197.54,197.4,20.12549]
[1731013607495,0.1,197.54,197.4,20.12549]
[1731013608294,16.4012,197.55,197.4,20.12549]
[1731013608592,0.1,197.54,197.42,20.12549]
[1731013608891,23.976884,197.54,197.42,20.12549]
[1731013609076,23.976884,197.54,197.41,20.12549]
[1731013609488,23.876884,197.54,197.41,20.12549]
[1731013609699,16.4012,197.55,197.41,5.19548206]
[1731013609899,16.4012,197.55,197.43,0.12549]
[1731013612979,16.5012,197.55,197.43,0.12549]
[1731013613678,0.1,197.54,197.43,0.12549]
[1731013614976,0.1,197.51,197.41,5.06999206]
[1731013615182,23.776884,197.54,197.4,2.05384948]
[1731013615380,0.1,197.53,197.42,0.12549]
[1731013616204,16.5012,197.55,197.43,0.12549]
[1731013616385,16.5012,197.55,197.43,20.12549]
[1731013616575,0.1,197.54,197.43,20.12549]
[1731013616994,16.5012,197.55,197.43,20.12549]
[1731013617404,16.4012,197.55,197.43,20.12549]
[1731013619586,0.1,197.58,197.45,20.12549]
[1731013619778,0.2,197.58,197.45,20.12549]
[1731013619984,0.1,197.58,197.45,20.12549]
[1731013620179,0.2,197.58,197.45,20.12549]
[1731013620598,0.1,197.58,197.45,20.12549]
[1731013621008,16.053,197.6,197.47,0.12549]
[1731013621186,0.1,197.63,197.49,20.12549]
[1731013621502,16.153,197.64,197.51,0.12549]
[1731013621800,0.1,197.62,197.51,20.12549]
[1731013622806,0.1,197.62,197.49,20.12549]
[1731013623105,0.1,197.61,197.49,20.12549]
[1731013623521,23.976884,197.62,197.47,20.12549]
[1731013623715,0.1,197.62,197.49,20.12549]
[1731013624323,0.1,197.62,197.51,0.12549]
[1731013624627,0.1,197.63,197.51,20.12549]
[1731013626239,16.153,197.64,197.51,20.12549]
[1731013627341,16.053,197.64,197.51,20.12549]
[1731013627557,15.953,197.64,197.53,20.12549]
[1731013629636,15.953,197.64,197.55,20.12549]
[1731013630218,16.053,197.64,197.48,20.0]
[1731013630427,16.053,197.64,197.5,20.12549]
[1731013630759,25.87386394,197.64,197.52,0.12549]
[1731013631040,25.97386394,197.64,197.52,0.12549]
[1731013631526,9.92086394,197.62,197.5,20.0]
[1731013631737,9.92086394,197.62,197.48,23.776884]
[1731013631937,10.02086394,197.61,197.44,126.44]
[1731013632142,0.1,197.6,197.44,126.44]
[1731013632846,0.1,197.6,197.47,0.12549]
[1731013633441,0.2,197.59,197.46,24.78166707]
[1731013633933,6.5065,197.59,197.47,0.12549]
[1731013634156,6.3065,197.59,197.47,0.12549]
[1731013634330,6.3065,197.59,197.47,5.19548206]
[1731013634528,0.2,197.63,197.49,0.12549]
[1731013634726,0.1,197.63,197.49,0.12549]
[1731013634925,0.1,197.61,197.49,0.12549]
[1731013635327,9.92086394,197.61,197.49,0.12549]
[1731013635736,10.02086394,197.61,197.49,0.12549]
[1731013635948,9.82086394,197.61,197.49,0.12549]
[1731013636237,0.2,197.62,197.49,0.12549]
[1731013636448,10.02086394,197.62,197.49,0.12549]
[1731013636917,9.82086394,197.62,197.49,0.12549]
[1731013637116,0.1,197.63,197.49,0.12549]
[1731013638351,0.2,197.6,197.46,24.78166707]
[1731013638531,0.1,197.6,197.46,24.78166707]
[1731013638719,0.2,197.61,197.47,0.12549]
[1731013639534,23.776884,197.62,197.47,5.19548206]
[1731013639852,23.776884,197.62,197.46,24.78166707]
[1731013639853,0.1,197.62,197.49,23.902374]
[1731013640137,16.053,197.64,197.49,23.902374]
[1731013640523,0.1,197.62,197.49,0.12549]
[1731013640744,10.02086394,197.63,197.49,0.12549]
[1731013641062,15.953,197.64,197.49,0.12549]
[1731013641063,16.053,197.64,197.49,23.902374]
[1731013641420,0.1,197.63,197.49,23.902374]
[1731013641616,16.053,197.64,197.49,23.902374]
[1731013641835,0.1,197.63,197.49,23.902374]
[1731013642132,0.2,197.63,197.49,23.902374]
[1731013643327,0.1,197.63,197.49,23.902374]
[1731013644221,15.953,197.64,197.49,23.902374]
[1731013644413,0.5730422,197.65,197.51,39.469074]
[1731013644600,0.5730422,197.65,197.53,0.12549]
[1731013645601,0.6730422,197.65,197.53,0.12549]
[1731013646218,0.6730422,197.65,197.53,2.18076722]
[1731013646425,0.5730422,197.65,197.53,2.18076722]
[1731013646622,0.5730422,197.65,197.55,0.12549]
[1731013646806,0.6730422,197.65,197.55,0.12549]
[1731013647123,0.5730422,197.65,197.54,0.12549]
[1731013647630,0.5730422,197.65,197.52,0.12549]
[1731013647931,0.5730422,197.65,197.52,23.902374]
[1731013650916,0.5730422,197.65,197.52,28.97236606]
[1731013651221,0.5730422,197.65,197.54,23.902374]
[1731013651421,0.5730422,197.65,197.54,56.77737003]
[1731013651723,15.5063,197.74,197.6,0.12549]
[1731013652024,9.92086394,197.73,197.62,0.12549]
[1731013652239,9.92086394,197.73,197.64,0.12549]
[1731013652240,0.1,197.72,197.64,0.12549]
[1731013652723,0.1,197.7,197.6,23.776884]
[1731013652935,0.1,197.69,197.59,20.0]
[1731013653520,0.1,197.69,197.6,0.12549]
[1731013655823,15.5656,197.66,197.56,23.776884]
[1731013656023,15.5656,197.66,197.57,0.12549]
[1731013657122,15.5656,197.66,197.57,20.12549]
[1731013657325,15.4656,197.66,197.57,20.12549]
[1731013657631,15.5656,197.66,197.57,20.12549]
[1731013658112,0.1,197.68,197.57,20.12549]
[1731013658313,0.2,197.68,197.57,20.12549]
[1731013658637,0.1,197.65,197.57,20.12549]
[1731013661330,10.02086394,197.68,197.57,20.12549]
[1731013661621,0.1,197.65,197.55,23.776884]
[1731013661835,0.1,197.65,197.57,0.12549]
[1731013662037,0.1,197.66,197.57,0.12549]
[1731013662340,0.1,197.64,197.57,0.12549]
[1731013662512,0.1,197.68,197.59,0.12549]
[1731013663836,9.92086394,197.71,197.61,0.12549]
[1731013664216,0.1,197.69,197.61,0.12549]
[1731013664419,0.1,197.71,197.61,23.902374]
[1731013664724,0.1,197.71,197.63,0.12549]
[1731013665113,9.92086394,197.71,197.63,0.12549]
[1731013665322,0.1,197.69,197.63,0.12549]
[1731013666227,9.82086394,197.71,197.63,0.12549]
[1731013666648,15.7337,197.72,197.65,0.12549]
[1731013666942,0.1,197.71,197.65,0.12549]
[1731013667510,9.92086394,197.71,197.65,0.12549]
[1731013667715,0.1,197.69,197.61,20.0]
[1731013668839,0.1,197.69,197.58,16.0574]
[1731013668840,0.1,197.69,197.6,0.12549]
[1731013669045,0.1,197.69,197.6,23.902374]
[1731013669240,0.1,197.69,197.62,0.12549]
[1731013671336,0.1,197.71,197.62,23.902374]
[1731013671534,0.1,197.7,197.64,0.12549]
[1731013671831,0.1,197.69,197.64,0.12549]
[1731013672539,15.7337,197.72,197.66,0.12549]
[1731013672834,25.55456394,197.72,197.66,0.12549]
[1731013673035,0.1,197.69,197.58,16.0574]
[1731013673244,0.1,197.69,197.59,23.776884]
[1731013673424,0.1,197.69,197.6,0.12549]
[1731013673837,0.1,197.71,197.6,0.12549]
[1731013674119,15.9337,197.72,197.62,20.12549]
[1731013674325,0.1,197.71,197.62,20.12549]
[1731013674740,0.1,197.69,197.62,20.12549]
[1731013675237,0.1,197.71,197.64,20.12549]
[1731013675631,15.8337,197.72,197.64,20.12549]
[1731013675851,15.8337,197.72,197.62,20.12549]
[1731013676028,0.1,197.71,197.64,20.0]
[1731013676842,0.1,197.71,197.65,0.12549]
[1731013677431,15.8337,197.72,197.65,0.12549]
[1731013677632,0.1,197.73,197.65,0.12549]
[1731013677847,0.1,197.72,197.65,0.12549]
[1731013678154,0.1,197.7,197.65,0.12549]
[1731013678452,0.1,197.72,197.65,0.12549]
[1731013678633,0.1,197.7,197.65,0.12549]
[1731013680451,0.1,197.71,197.65,0.12549]
[1731013680754,0.1,197.7,197.65,0.12549]
[1731013681248,0.1,197.69,197.62,0.12549]
[1731013683648,0.1,197.69,197.64,0.12549]
[1731013684378,0.1,197.69,197.61,20.12549]
[1731013685261,0.1,197.67,197.58,16.0574]
[1731013685872,0.1,197.67,197.59,0.12549]
[1731013686064,0.1,197.68,197.59,0.12549]
[1731013686379,0.1,197.67,197.59,20.0]
[1731013686586,0.1,197.67,197.6,0.12549]
[1731013686775,0.1,197.68,197.6,0.12549]
[1731013686980,0.1,197.67,197.6,0.12549]
[1731013687178,0.2,197.68,197.6,0.12549]
[1731013687378,0.1,197.67,197.6,0.12549]
[1731013687685,0.1,197.69,197.61,20.0]
[1731013687876,0.2,197.63,197.51,4.82068562]
[1731013688089,0.2,197.63,197.52,4.2572539]
[1731013688280,0.2,197.63,197.54,0.12549]
[1731013688774,0.2,197.63,197.47,13.38916359]
[1731013688775,0.2,197.63,197.48,17.75818677]
[1731013688982,0.1,197.61,197.49,4.25828345]
[1731013689288,0.1,197.62,197.5,4.25828345]
[1731013689492,0.2,197.62,197.51,4.25828345]
[1731013689807,0.2,197.62,197.49,5.06999206]
[1731013689808,0.2,197.62,197.53,0.12549]
[1731013690391,0.2,197.62,197.5,20.0]
[1731013690392,0.1,197.62,197.51,0.12549]
[1731013690589,0.2,197.62,197.53,0.12549]
[1731013690768,0.1,197.61,197.53,0.12549]
[1731013691371,0.1,197.61,197.51,23.902374]
[1731013691579,0.1,197.61,197.53,0.12549]
[1731013691808,0.2,197.6,197.53,0.12549]
[1731013692011,0.1,197.53,197.48,2.05938677]
[1731013692291,0.1,197.54,197.41,5.00789082]
[1731013692493,0.2,197.55,197.43,0.12549]
[1731013692689,0.2,197.55,197.45,0.12549]
[1731013692864,0.2,197.55,197.47,0.12549]
[1731013693076,0.1,197.55,197.47,0.12549]
[1731013693295,0.1,197.53,197.39,5.00789082]
[1731013693502,9.82086394,197.57,197.39,5.00789082]
[1731013693503,0.1,197.56,197.4,24.2532591]
[1731013693681,21.3176,197.59,197.4,24.2532591]
[1731013693682,0.2,197.58,197.42,0.12549]
[1731013693865,21.3176,197.59,197.46,0.12549]
[1731013694079,21.3176,197.59,197.48,0.12549]
[1731013694295,21.3176,197.59,197.48,20.12549]
[1731013694686,15.1729,197.59,197.52,20.12549]
[1731013695180,0.2,197.61,197.52,20.12549]
[1731013695366,0.1,197.61,197.52,20.12549]
[1731013695576,0.2,197.61,197.52,20.12549]
[1731013696402,0.1,197.6,197.52,20.12549]
[1731013697490,0.2,197.61,197.52,20.12549]
[1731013697800,0.1,197.6,197.52,20.12549]
[1731013697988,0.2,197.61,197.52,20.12549]
[1731013698378,0.1,197.6,197.52,20.12549]
[1731013698582,0.1,197.63,197.54,20.12549]
[1731013699704,0.1,197.63,197.56,20.12549]
[1731013700594,0.1,197.62,197.46,20.0]
[1731013700801,0.2,197.62,197.5,20.0]
[1731013701114,0.2,197.61,197.52,20.0]
[1731013701300,0.1,197.61,197.52,20.0]
[1731013701476,0.2,197.61,197.53,0.12549]
[1731013702198,0.2,197.61,197.51,0.12549]
[1731013702401,0.2,197.61,197.51,20.12549]
[1731013702578,0.1,197.61,197.51,20.12549]
[1731013703002,0.2,197.61,197.51,20.12549]
[1731013703905,0.1,197.61,197.51,20.12549]
[1731013704075,0.2,197.63,197.51,20.12549]
[1731013704287,0.1,197.61,197.51,20.12549]
[1731013705097,21.4576,197.64,197.55,0.12549]
[1731013705415,21.4576,197.64,197.55,20.12549]
[1731013706484,0.1,197.63,197.55,20.12549]
[1731013706686,0.1,197.62,197.55,20.12549]
[1731013707078,15.1811,197.64,197.55,20.12549]
[1731013707277,0.1,197.63,197.55,20.12549]
[1731013707581,15.0811,197.64,197.57,20.12549]
[1731013709087,0.2,197.66,197.57,20.12549]
[1731013709287,0.1,197.66,197.57,20.12549]
[1731013709485,16.5433,197.68,197.59,20.12549]
[1731013709778,0.1,197.67,197.59,20.12549]
[1731013710174,16.6433,197.68,197.59,20.12549]
[1731013710475,0.1,197.67,197.59,20.12549]
[1731013711372,0.1,197.65,197.59,20.12549]
[1731013712174,0.1,197.64,197.55,2.09002018]
[1731013712472,0.1,197.64,197.57,0.12549]
[1731013712664,0.1,197.63,197.57,0.12549]
[1731013714380,0.1,197.64,197.57,0.12549]
[1731013714768,0.1,197.63,197.57,0.12549]
[1731013715280,0.1,197.65,197.57,0.12549]
[1731013715281,0.1,197.64,197.57,0.12549]
[1731013715656,0.1,197.63,197.57,0.12549]
[1731013716088,0.1,197.63,197.56,20.0]
[1731013716089,0.1,197.63,197.56,0.12549]
[1731013716786,0.1,197.62,197.56,0.12549]
[1731013717276,0.1,197.61,197.56,0.12549]
[1731013718079,0.1,197.61,197.5,20.0]
[1731013718273,0.1,197.59,197.49,15.9919]
[1731013718589,0.1,197.63,197.5,0.12549]
[1731013718881,0.1,197.64,197.5,5.19548206]
[1731013719215,0.2,197.64,197.5,5.19548206]
[1731013719390,0.1,197.63,197.5,5.19548206]
[1731013719682,0.1,197.64,197.52,0.12549]
[1731013719885,0.1,197.65,197.52,0.12549]
[1731013720176,0.2,197.66,197.52,0.12549]
[1731013720565,0.1,197.6,197.51,20.0]
[1731013720763,0.1,197.6,197.49,2.10472564]
[1731013720969,0.1,197.61,197.5,0.12549]
[1731013721176,0.1,197.6,197.48,20.0]
[1731013721664,0.2,197.6,197.47,6.2483]
[1731013721963,0.1,197.61,197.48,0.12549]
[1731013722378,0.1,197.6,197.48,0.12549]
[1731013722580,0.1,197.62,197.48,23.902374]
[1731013722778,0.2,197.63,197.52,0.12549]
[1731013722986,0.2,197.63,197.54,0.12549]
[1731013723177,0.1,197.62,197.54,0.12549]
[1731013723364,0.1,197.62,197.49,20.12549]
[1731013723682,0.1,197.62,197.47,6.2483]
[1731013723683,0.1,197.61,197.53,20.12549]
[1731013723898,0.1,197.62,197.53,20.12549]
[1731013724068,0.2,197.64,197.53,20.12549]
[1731013724268,0.1,197.63,197.53,20.12549]
[1731013725185,0.1,197.64,197.55,20.12549]
[1731013725594,0.2,197.64,197.55,20.12549]
[1731013726096,0.1,197.62,197.55,20.12549]
[1731013726272,0.1,197.63,197.55,20.12549]
[1731013726473,0.1,197.62,197.55,20.12549]
[1731013726668,0.2,197.66,197.55,20.12549]
[1731013726971,0.1,197.66,197.57,0.12549]
[1731013727169,0.1,197.64,197.57,20.12549]
[1731013727571,0.2,197.67,197.57,20.12549]
[1731013728284,0.1,197.66,197.57,20.12549]
[1731013728979,0.2,197.67,197.58,23.776884]
[1731013729300,0.1,197.63,197.55,2.00984017]
[1731013729497,0.2,197.62,197.47,27.08239206]
[1731013729793,0.1,197.63,197.48,0.12549]
[1731013729975,0.2,197.64,197.48,0.12549]
[1731013730177,0.1,197.64,197.48,0.12549]
[1731013730383,0.2,197.64,197.48,0.12549]
[1731013730674,0.2,197.64,197.5,20.12549]
[1731013730884,0.2,197.64,197.52,20.12549]
[1731013731094,0.2,197.64,197.47,57.42239206]
[1731013731095,0.1,197.64,197.56,0.12549]
[1731013731291,0.1,197.64,197.56,20.12549]
[1731013731493,0.2,197.64,197.56,20.12549]
[1731013731973,0.1,197.64,197.56,20.12549]
[1731013732176,0.2,197.64,197.56,20.12549]
[1731013733582,0.2,197.65,197.56,20.12549]
[1731013734483,0.2,197.66,197.58,20.12549]
[1731013735079,0.2,197.66,197.57,20.12549]
[1731013735393,0.1,197.65,197.57,20.12549]
[1731013736099,0.2,197.63,197.57,20.12549]
[1731013736779,0.1,197.63,197.57,20.12549]
[1731013736983,0.2,197.63,197.57,20.12549]
[1731013738903,0.2,197.62,197.57,20.12549]
[1731013739702,0.1,197.62,197.57,20.12549]
[1731013740083,0.2,197.63,197.57,20.12549]
[1731013740704,0.2,197.64,197.57,20.12549]
[1731013740909,0.2,197.65,197.57,20.12549]
[1731013741277,0.1,197.65,197.57,20.12549]
[1731013742895,0.1,197.65,197.57,22.21191725]
[1731013743206,0.2,197.65,197.57,22.21191725]
[1731013743511,0.1,197.66,197.57,22.21191725]
[1731013744192,0.2,197.66,197.57,22.21191725]
[1731013744600,0.1,197.66,197.57,22.21191725]
[1731013744804,0.2,197.67,197.57,22.21191725]
[1731013745002,16.5433,197.68,197.57,22.21191725]
[1731013745003,0.2,197.66,197.57,22.21191725]
[1731013745184,0.1,197.66,197.57,22.21191725]
[1731013745796,0.1,197.67,197.59,0.12549]
[1731013746002,16.5433,197.68,197.59,20.12549]
[1731013746310,0.1,197.67,197.61,20.12549]
[1731013747109,0.1,197.7,197.61,20.12549]
[1731013747309,0.1,197.68,197.61,20.0]
[1731013747886,0.1,197.68,197.62,0.12549]
[1731013748590,0.2,197.66,197.57,20.0]
[1731013749295,0.2,197.66,197.58,0.12549]
[1731013749799,0.1,197.64,197.56,28.50280462]
[1731013750299,0.1,197.64,197.57,0.12549]
[1731013750300,0.2,197.64,197.57,0.12549]
[1731013750504,0.2,197.64,197.56,28.50280462]
[1731013750688,0.1,197.62,197.56,12.08210462]
[1731013751296,0.1,197.6,197.56,10.0]
[1731013751900,0.1,197.61,197.56,10.0]
[1731013752105,0.1,197.61,197.57,0.12549]
[1731013752313,0.1,197.61,197.57,20.12549]
[1731013752494,0.2,197.63,197.57,20.12549]